[Event "4NCL 2019-20"]
[Site "Daventry"]
[Date "2020.02.09"]
[Round "6"]
[White "Grieve, Harry"]
[Black "Bridgeman, Niamh"]
[Result "1-0"]
[ECO "C07"]
[WhiteElo "2299"]
[BlackElo "1665"]
[Annotator "ChessBase"]
[PlyCount "73"]
[EventDate "2020.01.11"]
[EventCountry "ENG"]
[SourceTitle "playchess.com"]
[Source "ChessBase"]
[SourceQuality "1"]
[TimeControl "40/6000:3000+30"]

1. e4 {[%emt 0:00:00]} e6 {[%emt 0:00:00]} 2. d4 {[%emt 0:00:00]} d5 {[%emt 0:00:00]} 3. Nd2 {[%emt 0:00:00]} c5 {[%emt 0:00:00]} 4. exd5 {[%emt 0:00:00]} Qxd5 {[%emt 0:00:00]} 5. Ngf3 {[%emt 0:00:00]} cxd4 {[%emt 0:00:00]} 6. Bc4 {[%emt 0:00:00]} Qd7 {[%emt 0:00:00]} 7. O-O {[%emt 0:00:00]} Nf6 {[%emt 0:00:00]} 8. Nb3 {[%emt 0:00:00]} Nc6 {[%emt 0:00:00]} 9. Nbxd4 {[%emt 0:00:00]} Nxd4 {[%emt 0:00:00]} 10. Nxd4 {[%emt 0:00:00]} a6 {[%emt 0:00:00]} 11. Re1 {[%emt 0:00:00]} Bc5 {[%emt 0:00:00]} 12. Be3 {[%emt 0:06:48]} Qc7 {[%emt 0:00:43]} 13. Bb3 {[%emt 0:11:59]} O-O {[%emt 0:05:05]} 14. Qf3 {[%emt 0:04:28]} e5 {[%emt 0:27:50]} 15. Nf5 {[%emt 0:03:21]} Bxf5 {[%emt 0:24:33]} 16. Qxf5 {[%emt 0:00:12]} Rfe8 {[%emt 0:05:36]} 17. Bg5 {[%emt 0:11:51]} Qd7 {[%emt 0:10:46]} 18. Qxd7 {[%emt 0:05:48]} Nxd7 {[%emt 0:00:00]} 19. Rad1 {[%emt 0:00:00]} Nb6 {[%emt 0:01:36]} 20. a4 {[%emt 0:11:17]} Kf8 {[%emt 0:07:08]} 21. a5 {[%emt 0:01:39]} f6 {[%emt 0:05:36]} 22. Be3 {[%emt 0:20:32]} Bxe3 {[%emt 0:00:30]} 23. Rxe3 {[%emt 0:00:00]} Red8 {[%emt 0:05:14]} 24. Red3 {[%emt 0:00:23]} Rxd3 {[%emt 0:00:11]} 25. Rxd3 {[%emt 0:00:00]} Nc8 {[%emt 0:00:21]} 26. Rd7 {[%emt 0:02:24]} Rb8 {[%emt 0:01:29]} 27. Rf7+ {[%emt 0:00:00]} Ke8 {[%emt 0:00:11]} 28. Rxg7 {[%emt 0:00:00]} h5 {[%emt 0:00:51]} 29. Be6 {[%emt 0:02:08]} Kd8 {[%emt 0:00:27]} 30. Rd7+ {[%emt 0:02:44]} Ke8 {[%emt 0:00:00]} 31. Rh7 {[%emt 0:00:00]} Kd8 {[%emt 0:00:00]} 32. Rxh5 {[%emt 0:02:13]} Ke7 {[%emt 0:00:03]} 33. Bf5 {[%emt 0:00:00]} Na7 {[%emt 0:00:12]} 34. Rh7+ {[%emt 0:00:28]} Kd6 {[%emt 0:00:16]} 35. Rf7 {[%emt 0:03:57]} Nc6 {[%emt 0:00:27]} 36. Rxf6+ {[%emt 0:00:02]} Kc7 {[%emt 0:00:07]} 37. h4 {[%emt 0:01:32]} 1-0

[Event "4NCL 2019-20"]
[Site "Daventry"]
[Date "2020.02.09"]
[Round "6"]
[White "Sowray, Peter J"]
[Black "Weller, Jean-Luc"]
[Result "1/2-1/2"]
[ECO "E46"]
[WhiteElo "2272"]
[BlackElo "2230"]
[Annotator "ChessBase"]
[PlyCount "57"]
[EventDate "2020.01.11"]
[EventCountry "ENG"]
[SourceTitle "playchess.com"]
[Source "ChessBase"]
[SourceQuality "1"]
[TimeControl "40/6000:3000+30"]

1. d4 {[%emt 0:00:00]} Nf6 {[%emt 0:00:57]} 2. c4 {[%emt 0:00:00]} e6 {[%emt 0:00:00]} 3. Nc3 {[%emt 0:00:00]} Bb4 {[%emt 0:00:00]} 4. e3 {[%emt 0:00:00]} O-O {[%emt 0:00:00]} 5. Nge2 {[%emt 0:00:00]} d5 {[%emt 0:00:00]} 6. a3 {[%emt 0:00:00]} Be7 {[%emt 0:00:00]} 7. cxd5 {[%emt 0:00:00]} exd5 {[%emt 0:00:00]} 8. Nf4 {[%emt 0:00:00]} c6 {[%emt 0:00:00]} 9. Bd3 {[%emt 0:00:00]} a5 {[%emt 0:00:00]} 10. O-O {[%emt 0:00:00]} Na6 {[%emt 0:00:00]} 11. f3 {[%emt 0:00:00]} Nc7 {[%emt 0:02:03]} 12. Bd2 {[%emt 0:00:00]} Ne6 {[%emt 0:00:17]} 13. Nxe6 {[%emt 0:00:00]} Bxe6 {[%emt 0:00:00]} 14. Ne2 {[%emt 0:05:04]} Qb6 {[%emt 0:04:54]} 15. Bc3 {[%emt 0:03:37]} Rfd8 {[%emt 0:29:43]} 16. Qc2 {[%emt 0:08:07]} g6 {[%emt 0:08:20]} 17. Kh1 {[%emt 0:06:06]} Ne8 {[%emt 0:02:02]} 18. Rae1 {[%emt 0:04:57]} Bf6 {[%emt 0:05:18]} 19. e4 {[%emt 0:05:15]} dxe4 {[%emt 0:17:37]} 20. fxe4 {[%emt 0:00:00]} Bg7 {[%emt 0:00:00]} 21. e5 {[%emt 0:09:25]} c5 {[%emt 0:04:39]} 22. dxc5 {[%emt 0:03:48]} Qxc5 {[%emt 0:00:00]} 23. Ng3 {[%emt 0:02:41]} b5 {[%emt 0:06:24]} 24. Ne4 {[%emt 0:14:00]} Qd5 {[%emt 0:00:00]} 25. Nf6+ {[%emt 0:00:17]} Nxf6 {[%emt 0:01:43]} 26. exf6 {[%emt 0:00:00]} Qxd3 {[%emt 0:00:00]} 27. Qxd3 {[%emt 0:00:00]} Rxd3 {[%emt 0:00:00]} 28. fxg7 {[%emt 0:00:00]} b4 {[%emt 0:02:47]} 29. axb4 {[%emt 0:00:00]} 1/2-1/2

[Event "4NCL 2019-20"]
[Site "Daventry"]
[Date "2020.02.09"]
[Round "6"]
[White "Lund, D Brett"]
[Black "Skulte, Christopher"]
[Result "1-0"]
[ECO "A16"]
[WhiteElo "2265"]
[BlackElo "2033"]
[Annotator "ChessBase"]
[PlyCount "51"]
[EventDate "2020.01.11"]
[EventCountry "ENG"]
[SourceTitle "playchess.com"]
[Source "ChessBase"]
[SourceQuality "1"]
[TimeControl "40/6000:3000+30"]

1. c4 {[%emt 0:00:00]} Nf6 {[%emt 0:01:08]} 2. g3 {[%emt 0:00:00]} d5 {[%emt 0:01:59]} 3. cxd5 {[%emt 0:00:00]} Nxd5 {[%emt 0:00:11]} 4. Bg2 {[%emt 0:00:00]} g6 {[%emt 0:04:01]} 5. Nc3 {[%emt 0:00:00]} Nxc3 {[%emt 0:08:32]} 6. bxc3 {[%emt 0:00:00]} Bg7 {[%emt 0:00:00]} 7. Rb1 {[%emt 0:00:00]} c6 {[%emt 0:01:43]} 8. h4 {[%emt 0:00:00]} h5 {[%emt 0:05:46]} 9. Nf3 {[%emt 0:03:31]} O-O {[%emt 0:07:55]} 10. Ng5 {[%emt 0:03:52]} e5 {[%emt 0:06:53]} 11. Ba3 {[%emt 0:02:25]} Re8 {[%emt 0:00:00]} 12. Qb3 {[%emt 0:00:25]} Qf6 {[%emt 0:03:19]} 13. Ne4 {[%emt 0:03:18]} Qe6 {[%emt 0:10:46]} 14. Nd6 {[%emt 0:04:01]} Bf8 {[%emt 0:15:58]} 15. Nxe8 {[%emt 0:07:21]} Qxe8 {[%emt 0:00:00]} 16. Bxf8 {[%emt 0:01:13]} Kxf8 {[%emt 0:00:45]} 17. Qb4+ {[%emt 0:00:55]} Kg7 {[%emt 0:04:14]} 18. Qd6 {[%emt 0:00:00]} Na6 {[%emt 0:00:56]} 19. O-O {[%emt 0:02:22]} Rb8 {[%emt 0:00:26]} 20. d4 {[%emt 0:05:01]} exd4 {[%emt 0:04:43]} 21. Qxd4+ {[%emt 0:02:42]} Kh7 {[%emt 0:00:00]} 22. Qxa7 {[%emt 0:02:46]} Qxe2 {[%emt 0:00:18]} 23. Rfe1 {[%emt 0:01:42]} Qxa2 {[%emt 0:00:24]} 24. Bf1 {[%emt 0:01:37]} b5 {[%emt 0:01:38]} 25. Ra1 {[%emt 0:05:00]} Qd2 {[%emt 0:00:07]} 26. Qxf7+ {[%emt 0:00:07]} 1-0

[Event "4NCL 2019-20"]
[Site "Daventry"]
[Date "2020.02.09"]
[Round "6"]
[White "Mitchell, Martin"]
[Black "Quinn, John M"]
[Result "1/2-1/2"]
[ECO "E73"]
[WhiteElo "2207"]
[BlackElo "2139"]
[Annotator "ChessBase"]
[PlyCount "70"]
[EventDate "2020.01.11"]
[EventCountry "ENG"]
[SourceTitle "playchess.com"]
[Source "ChessBase"]
[SourceQuality "1"]
[TimeControl "40/6000:3000+30"]

1. d4 {[%emt 0:00:00]} Nf6 {[%emt 0:00:00]} 2. c4 {[%emt 0:00:00]} g6 {[%emt 0:00:00]} 3. Nc3 {[%emt 0:00:00]} Bg7 {[%emt 0:00:00]} 4. e4 {[%emt 0:00:00]} d6 {[%emt 0:00:00]} 5. Be2 {[%emt 0:00:00]} O-O {[%emt 0:00:00]} 6. Be3 {[%emt 0:00:00]} Na6 {[%emt 0:00:03]} 7. g4 {[%emt 0:00:25]} c5 {[%emt 0:05:27]} 8. d5 {[%emt 0:02:26]} e6 {[%emt 0:03:46]} 9. g5 {[%emt 0:03:26]} Ne8 {[%emt 0:00:54]} 10. Qd2 {[%emt 0:06:44]} exd5 {[%emt 0:01:25]} 11. cxd5 {[%emt 0:03:49]} Bd7 {[%emt 0:05:50]} 12. h4 {[%emt 0:00:58]} Rb8 {[%emt 0:02:11]} 13. h5 {[%emt 0:03:03]} b5 {[%emt 0:00:38]} 14. f4 {[%emt 0:17:09]} f5 {[%emt 0:15:48]} 15. hxg6 {[%emt 0:02:39]} hxg6 {[%emt 0:00:19]} 16. Bf3 {[%emt 0:01:46]} b4 {[%emt 0:02:59]} 17. Nd1 {[%emt 0:08:19]} Qe7 {[%emt 0:06:47]} 18. Qh2 {[%emt 0:09:22]} Kf7 {[%emt 0:10:07]} 19. Qg2 {[%emt 0:05:04]} Nec7 {[%emt 0:04:08]} 20. Ne2 {[%emt 0:03:36]} Rh8 {[%emt 0:06:47]} 21. Ng3 {[%emt 0:02:51]} Rxh1+ {[%emt 0:01:38]} 22. Qxh1 {[%emt 0:00:00]} Rh8 {[%emt 0:00:00]} 23. Qg2 {[%emt 0:01:25]} Nb5 {[%emt 0:10:12]} 24. exf5 {[%emt 0:04:29]} gxf5 {[%emt 0:00:46]} 25. Be2 {[%emt 0:05:38]} Nac7 {[%emt 0:00:16]} 26. Nh5 {[%emt 0:02:44]} Bd4 {[%emt 0:04:16]} 27. Kd2 {[%emt 0:04:26]} Kg6 {[%emt 0:09:20]} 28. Nf6 {[%emt 0:04:02]} Bxf6 {[%emt 0:02:04]} 29. gxf6+ {[%emt 0:00:00]} Kxf6 {[%emt 0:00:00]} 30. Nf2 {[%emt 0:00:00]} Qg7 {[%emt 0:00:17]} 31. Qxg7+ {[%emt 0:00:06]} Kxg7 {[%emt 0:00:00]} 32. Bc4 {[%emt 0:01:33]} Ne8 {[%emt 0:00:31]} 33. a4 {[%emt 0:00:01]} Nbc7 {[%emt 0:00:10]} 34. Rg1+ {[%emt 0:00:00]} Kf6 {[%emt 0:00:00]} 35. b3 {[%emt 0:00:00]} Rh2 {[%emt 0:00:22]} 1/2-1/2

[Event "4NCL 2019-20"]
[Site "Daventry"]
[Date "2020.02.09"]
[Round "6"]
[White "Bukojemski, Adam"]
[Black "Colovic, Aleksandar"]
[Result "1/2-1/2"]
[ECO "B53"]
[WhiteElo "2201"]
[BlackElo "2443"]
[Annotator "ChessBase"]
[PlyCount "85"]
[EventDate "2020.01.11"]
[EventCountry "ENG"]
[SourceTitle "playchess.com"]
[Source "ChessBase"]
[SourceQuality "1"]
[TimeControl "40/6000:3000+30"]

1. e4 {[%emt 0:00:00]} c5 {[%emt 0:00:00]} 2. Nf3 {[%emt 0:00:00]} d6 {[%emt 0:00:00]} 3. d4 {[%emt 0:00:00]} cxd4 {[%emt 0:00:00]} 4. Qxd4 {[%emt 0:00:00]} Nc6 {[%emt 0:00:00]} 5. Qe3 {[%emt 0:00:00]} Nf6 {[%emt 0:00:31]} 6. h3 {[%emt 0:00:00]} e6 {[%emt 0:01:19]} 7. c4 {[%emt 0:00:00]} Be7 {[%emt 0:00:00]} 8. Nc3 {[%emt 0:00:00]} O-O {[%emt 0:00:00]} 9. Be2 {[%emt 0:00:00]} b6 {[%emt 0:00:00]} 10. O-O {[%emt 0:00:00]} Bb7 {[%emt 0:00:00]} 11. Rd1 {[%emt 0:00:00]} Qc7 {[%emt 0:02:41]} 12. Bd2 {[%emt 0:08:59]} a6 {[%emt 0:05:46]} 13. Rac1 {[%emt 0:00:00]} Ne5 {[%emt 0:00:00]} 14. Nd4 {[%emt 0:01:47]} Rac8 {[%emt 0:06:22]} 15. f4 {[%emt 0:04:48]} Ned7 {[%emt 0:02:20]} 16. Bf3 {[%emt 0:00:51]} Qb8 {[%emt 0:00:00]} 17. b3 {[%emt 0:01:00]} Ne5 {[%emt 0:18:55]} 18. Na4 {[%emt 0:10:57]} Nxf3+ {[%emt 0:02:12]} 19. gxf3 {[%emt 0:00:00]} Nd7 {[%emt 0:05:36]} 20. Bb4 {[%emt 0:03:59]} Rfe8 {[%emt 0:00:06]} 21. f5 {[%emt 0:00:20]} Bf6 {[%emt 0:17:32]} 22. fxe6 {[%emt 0:04:38]} fxe6 {[%emt 0:00:00]} 23. Ne2 {[%emt 0:00:16]} d5 {[%emt 0:00:00]} 24. Be1 {[%emt 0:03:10]} b5 {[%emt 0:01:24]} 25. Bg3 {[%emt 0:07:54]} Qa8 {[%emt 0:00:38]} 26. cxb5 {[%emt 0:00:00]} Rxc1 {[%emt 0:00:29]} 27. Rxc1 {[%emt 0:03:44]} dxe4 {[%emt 0:11:24]} 28. bxa6 {[%emt 0:01:27]} Bd5 {[%emt 0:01:51]} 29. a7 {[%emt 0:10:07]} exf3 {[%emt 0:00:00]} 30. Rc7 {[%emt 0:03:46]} fxe2 {[%emt 0:05:19]} 31. Rxd7 {[%emt 0:00:17]} Qc6 {[%emt 0:08:28]} 32. Nb6 {[%emt 0:06:40]} Bh1 {[%emt 0:05:46]} 33. Qxe2 {[%emt 0:00:00]} Qxb6+ {[%emt 0:00:00]} 34. Kxh1 {[%emt 0:00:00]} Qc6+ {[%emt 0:00:00]} 35. Qg2 {[%emt 0:00:00]} Qxd7 {[%emt 0:00:00]} 36. Bb8 {[%emt 0:00:00]} Qd1+ {[%emt 0:00:00]} 37. Kh2 {[%emt 0:00:00]} Qe1 {[%emt 0:00:00]} 38. a8=Q {[%emt 0:02:45]} Be5+ {[%emt 0:00:00]} 39. Bxe5 {[%emt 0:00:00]} Qxe5+ {[%emt 0:00:00]} 40. Kg1 {[%emt 0:00:00]} Qe1+ {[%emt 0:00:00]} 41. Kh2 {[%emt 0:49:35]} Qe5+ {[%emt 0:48:32]} 42. Kh1 {[%emt 0:00:42]} Qe1+ {[%emt 0:00:00]} 43. Kh2 {[%emt 0:00:00]} 1/2-1/2

[Event "4NCL 2019-20"]
[Site "Daventry"]
[Date "2020.02.09"]
[Round "6"]
[White "Wall, Tim P"]
[Black "Rogers, Jonathan W"]
[Result "1/2-1/2"]
[ECO "D00"]
[WhiteElo "2201"]
[BlackElo "2335"]
[Annotator "ChessBase"]
[PlyCount "74"]
[EventDate "2020.01.11"]
[EventCountry "ENG"]
[SourceTitle "playchess.com"]
[Source "ChessBase"]
[SourceQuality "1"]
[TimeControl "40/6000:3000+30"]

1. d4 {[%emt 0:00:00]} Nf6 {[%emt 0:00:49]} 2. Nc3 {[%emt 0:00:00]} d5 {[%emt 0:01:02]} 3. Bf4 {[%emt 0:00:00]} e6 {[%emt 0:01:11]} 4. e3 {[%emt 0:00:00]} a6 {[%emt 0:01:29]} 5. Bd3 {[%emt 0:00:00]} Bd6 {[%emt 0:06:01]} 6. Nf3 {[%emt 0:00:01]} Bxf4 {[%emt 0:07:02]} 7. exf4 {[%emt 0:00:00]} Qd6 {[%emt 0:00:00]} 8. Qd2 {[%emt 0:00:52]} b6 {[%emt 0:02:09]} 9. Ne5 {[%emt 0:19:41]} c5 {[%emt 0:00:18]} 10. O-O {[%emt 0:10:31]} O-O {[%emt 0:10:01]} 11. Qe3 {[%emt 0:21:37]} c4 {[%emt 0:06:54]} 12. Be2 {[%emt 0:00:07]} b5 {[%emt 0:00:00]} 13. Bf3 {[%emt 0:01:34]} Bb7 {[%emt 0:05:59]} 14. Rfe1 {[%emt 0:04:28]} Nc6 {[%emt 0:01:52]} 15. Rad1 {[%emt 0:00:49]} Ne7 {[%emt 0:04:29]} 16. g4 {[%emt 0:02:22]} Ne8 {[%emt 0:05:12]} 17. Bg2 {[%emt 0:01:57]} f6 {[%emt 0:08:07]} 18. Nf3 {[%emt 0:00:00]} Ng6 {[%emt 0:00:00]} 19. Ne2 {[%emt 0:09:13]} Nc7 {[%emt 0:03:08]} 20. h4 {[%emt 0:00:00]} Rae8 {[%emt 0:00:10]} 21. h5 {[%emt 0:00:00]} Ne7 {[%emt 0:00:00]} 22. Ng3 {[%emt 0:00:12]} Nc6 {[%emt 0:00:00]} 23. Re2 {[%emt 0:05:05]} b4 {[%emt 0:00:00]} 24. Rde1 {[%emt 0:00:31]} c3 {[%emt 0:02:31]} 25. bxc3 {[%emt 0:02:48]} Nb5 {[%emt 0:03:32]} 26. cxb4 {[%emt 0:01:57]} Qxb4 {[%emt 0:00:00]} 27. Rd2 {[%emt 0:02:15]} Na5 {[%emt 0:00:59]} 28. Rd3 {[%emt 0:03:22]} Nd6 {[%emt 0:01:10]} 29. Qd2 {[%emt 0:01:29]} Qb6 {[%emt 0:01:11]} 30. a3 {[%emt 0:02:32]} Ne4 {[%emt 0:01:42]} 31. Qb4 {[%emt 0:00:00]} Qc7 {[%emt 0:00:59]} 32. Re2 {[%emt 0:01:01]} Rb8 {[%emt 0:01:03]} 33. Qe1 {[%emt 0:01:48]} Bc6 {[%emt 0:00:00]} 34. Rd1 {[%emt 0:01:00]} Nc4 {[%emt 0:00:24]} 35. Nh2 {[%emt 0:00:29]} f5 {[%emt 0:01:19]} 36. gxf5 {[%emt 0:00:00]} exf5 {[%emt 0:00:00]} 37. f3 {[%emt 0:00:14]} Nxg3 {[%emt 0:04:35]} 1/2-1/2

[Event "4NCL 2019-20"]
[Site "Daventry"]
[Date "2020.02.09"]
[Round "6"]
[White "Clarke, Stuart W"]
[Black "Lee, Richard W Y"]
[Result "1/2-1/2"]
[ECO "C07"]
[WhiteElo "2195"]
[BlackElo "2130"]
[Annotator "ChessBase"]
[PlyCount "65"]
[EventDate "2020.01.11"]
[EventCountry "ENG"]
[SourceTitle "playchess.com"]
[Source "ChessBase"]
[SourceQuality "1"]
[TimeControl "40/6000:3000+30"]

1. e4 {[%emt 0:00:00]} e6 {[%emt 0:00:00]} 2. d4 {[%emt 0:00:00]} d5 {[%emt 0:00:09]} 3. Nd2 {[%emt 0:00:04]} c5 {[%emt 0:00:00]} 4. exd5 {[%emt 0:00:00]} Qxd5 {[%emt 0:00:00]} 5. Ngf3 {[%emt 0:00:00]} cxd4 {[%emt 0:00:00]} 6. Bc4 {[%emt 0:00:00]} Qd6 {[%emt 0:00:00]} 7. O-O {[%emt 0:00:00]} Nf6 {[%emt 0:00:00]} 8. Nb3 {[%emt 0:00:00]} Nc6 {[%emt 0:00:00]} 9. Nbxd4 {[%emt 0:00:00]} Nxd4 {[%emt 0:00:00]} 10. Nxd4 {[%emt 0:00:00]} a6 {[%emt 0:00:00]} 11. Re1 {[%emt 0:00:00]} Qc7 {[%emt 0:00:00]} 12. Qe2 {[%emt 0:00:00]} Bd6 {[%emt 0:06:08]} 13. Bg5 {[%emt 0:00:00]} O-O {[%emt 0:16:49]} 14. Bd3 {[%emt 0:08:46]} Qc5 {[%emt 0:18:03]} 15. Bxf6 {[%emt 0:06:20]} gxf6 {[%emt 0:00:00]} 16. Rad1 {[%emt 0:05:51]} Kh8 {[%emt 0:10:26]} 17. c3 {[%emt 0:08:20]} Qe5 {[%emt 0:05:41]} 18. Qxe5 {[%emt 0:14:52]} Bxe5 {[%emt 0:00:00]} 19. Nf3 {[%emt 0:01:29]} Bc7 {[%emt 0:03:05]} 20. Re4 {[%emt 0:00:00]} f5 {[%emt 0:03:54]} 21. Rc4 {[%emt 0:02:53]} Bd8 {[%emt 0:00:54]} 22. a4 {[%emt 0:00:21]} Bf6 {[%emt 0:02:25]} 23. Be2 {[%emt 0:04:28]} Kg7 {[%emt 0:02:14]} 24. h3 {[%emt 0:02:59]} Rd8 {[%emt 0:04:45]} 25. Rxd8 {[%emt 0:02:58]} Bxd8 {[%emt 0:00:00]} 26. g4 {[%emt 0:01:05]} fxg4 {[%emt 0:01:45]} 27. hxg4 {[%emt 0:05:29]} Bd7 {[%emt 0:10:04]} 28. Ne5 {[%emt 0:04:32]} Be8 {[%emt 0:01:59]} 29. Bf3 {[%emt 0:00:16]} Rb8 {[%emt 0:04:18]} 30. Rb4 {[%emt 0:03:53]} a5 {[%emt 0:05:43]} 31. Rxb7 {[%emt 0:04:10]} Rxb7 {[%emt 0:00:08]} 32. Bxb7 {[%emt 0:00:06]} Bxa4 {[%emt 0:00:00]} 33. Kg2 {[%emt 0:03:57]} 1/2-1/2

[Event "4NCL 2019-20"]
[Site "Daventry"]
[Date "2020.02.09"]
[Round "6"]
[White "Ivell, Nicholas W"]
[Black "Evans, Craig"]
[Result "1-0"]
[ECO "B13"]
[WhiteElo "2177"]
[BlackElo "2003"]
[Annotator "ChessBase"]
[PlyCount "61"]
[EventDate "2020.01.11"]
[EventCountry "ENG"]
[SourceTitle "playchess.com"]
[Source "ChessBase"]
[SourceQuality "1"]
[TimeControl "40/6000:3000+30"]

1. e4 {[%emt 0:00:00]} c6 {[%emt 0:02:13]} 2. d4 {[%emt 0:00:00]} d5 {[%emt 0:00:00]} 3. exd5 {[%emt 0:00:00]} cxd5 {[%emt 0:00:00]} 4. Bd3 {[%emt 0:00:00]} Nc6 {[%emt 0:00:00]} 5. c3 {[%emt 0:00:00]} g6 {[%emt 0:00:00]} 6. Nf3 {[%emt 0:00:34]} Bg7 {[%emt 0:00:00]} 7. O-O {[%emt 0:00:06]} Nf6 {[%emt 0:00:00]} 8. Re1 {[%emt 0:03:18]} O-O {[%emt 0:00:00]} 9. Nbd2 {[%emt 0:01:52]} Bf5 {[%emt 0:00:10]} 10. Bxf5 {[%emt 0:02:26]} gxf5 {[%emt 0:00:00]} 11. Nf1 {[%emt 0:02:46]} e6 {[%emt 0:06:56]} 12. Ng3 {[%emt 0:02:33]} Ne4 {[%emt 0:04:38]} 13. Nh5 {[%emt 0:01:57]} Rc8 {[%emt 0:05:17]} 14. Bf4 {[%emt 0:07:09]} f6 {[%emt 0:08:38]} 15. Nh4 {[%emt 0:17:17]} Qd7 {[%emt 0:04:55]} 16. f3 {[%emt 0:02:26]} Ng5 {[%emt 0:02:02]} 17. Qd3 {[%emt 0:03:38]} Qf7 {[%emt 0:13:10]} 18. Ng3 {[%emt 0:00:41]} Rfe8 {[%emt 0:13:58]} 19. Re2 {[%emt 0:02:40]} Ne7 {[%emt 0:06:10]} 20. Rae1 {[%emt 0:01:29]} Ng6 {[%emt 0:00:20]} 21. Nxg6 {[%emt 0:03:40]} hxg6 {[%emt 0:00:00]} 22. Bxg5 {[%emt 0:01:28]} fxg5 {[%emt 0:00:00]} 23. Nh1 {[%emt 0:00:17]} Rc6 {[%emt 0:10:19]} 24. Nf2 {[%emt 0:00:00]} Bf6 {[%emt 0:00:48]} 25. Qd2 {[%emt 0:00:44]} Qh7 {[%emt 0:00:31]} 26. Nd3 {[%emt 0:00:50]} Qh4 {[%emt 0:04:14]} 27. Ne5 {[%emt 0:01:37]} Bxe5 {[%emt 0:00:00]} 28. Rxe5 {[%emt 0:00:08]} Kf7 {[%emt 0:00:21]} 29. Qe2 {[%emt 0:03:19]} Rd8 {[%emt 0:02:51]} 30. g3 {[%emt 0:00:19]} Qh8 {[%emt 0:00:06]} 31. Rxe6 {[%emt 0:00:00]} 1-0

[Event "4NCL 2019-20"]
[Site "Daventry"]
[Date "2020.02.09"]
[Round "6"]
[White "Gallagher, Daniel GH"]
[Black "Abbas, Daniel"]
[Result "1-0"]
[ECO "B40"]
[WhiteElo "2171"]
[BlackElo "2251"]
[Annotator "ChessBase"]
[PlyCount "68"]
[EventDate "2020.01.11"]
[EventCountry "ENG"]
[SourceTitle "playchess.com"]
[Source "ChessBase"]
[SourceQuality "1"]
[TimeControl "40/6000:3000+30"]

1. e4 {[%emt 0:00:00]} c5 {[%emt 0:00:00]} 2. Nf3 {[%emt 0:00:00]} e6 {[%emt 0:00:00]} 3. b3 {[%emt 0:00:00]} a6 {[%emt 0:00:00]} 4. Bb2 {[%emt 0:00:00]} Nc6 {[%emt 0:00:00]} 5. c4 {[%emt 0:00:57]} Qc7 {[%emt 0:00:00]} 6. g3 {[%emt 0:00:04]} Nf6 {[%emt 0:05:13]} 7. Nc3 {[%emt 0:02:18]} Rb8 {[%emt 0:06:50]} 8. Bg2 {[%emt 0:16:13]} Be7 {[%emt 0:05:02]} 9. O-O {[%emt 0:05:12]} b5 {[%emt 0:05:59]} 10. d3 {[%emt 0:00:39]} d6 {[%emt 0:03:26]} 11. Nh4 {[%emt 0:07:59]} O-O {[%emt 0:06:15]} 12. f4 {[%emt 0:00:00]} Nd7 {[%emt 0:02:42]} 13. Nf3 {[%emt 0:03:29]} Bf6 {[%emt 0:01:39]} 14. Qd2 {[%emt 0:05:01]} Nd4 {[%emt 0:08:09]} 15. Kh1 {[%emt 0:05:24]} Rb6 {[%emt 0:08:44]} 16. Rac1 {[%emt 0:04:04]} Bb7 {[%emt 0:01:20]} 17. Nxd4 {[%emt 0:03:27]} cxd4 {[%emt 0:01:32]} 18. Ne2 {[%emt 0:00:39]} bxc4 {[%emt 0:01:42]} 19. Rxc4 {[%emt 0:02:13]} Qb8 {[%emt 0:00:03]} 20. Bxd4 {[%emt 0:02:33]} d5 {[%emt 0:00:12]} 21. exd5 {[%emt 0:02:16]} exd5 {[%emt 0:00:00]} 22. Rcc1 {[%emt 0:00:05]} Re6 {[%emt 0:00:03]} 23. Bxf6 {[%emt 0:00:47]} Nxf6 {[%emt 0:00:00]} 24. Nd4 {[%emt 0:00:00]} Re7 {[%emt 0:00:00]} 25. h3 {[%emt 0:08:40]} Rfe8 {[%emt 0:00:19]} 26. Rfe1 {[%emt 0:00:00]} g6 {[%emt 0:00:33]} 27. Rxe7 {[%emt 0:02:48]} Rxe7 {[%emt 0:00:22]} 28. Nc6 {[%emt 0:00:00]} Bxc6 {[%emt 0:00:00]} 29. Rxc6 {[%emt 0:00:00]} Nh5 {[%emt 0:00:36]} 30. Kh2 {[%emt 0:01:05]} d4 {[%emt 0:04:18]} 31. Rxa6 {[%emt 0:06:28]} Kg7 {[%emt 0:01:49]} 32. Ra4 {[%emt 0:06:53]} Qe8 {[%emt 0:08:06]} 33. Qb4 {[%emt 0:02:57]} Re2 {[%emt 0:00:26]} 34. Qxd4+ {[%emt 0:00:00]} f6 {[%emt 0:01:01]} 1-0

[Event "4NCL 2019-20"]
[Site "Daventry"]
[Date "2020.02.09"]
[Round "6"]
[White "French, Max"]
[Black "Zhou, Yang-Fan"]
[Result "1/2-1/2"]
[ECO "E92"]
[WhiteElo "2168"]
[BlackElo "2433"]
[Annotator "ChessBase"]
[PlyCount "63"]
[EventDate "2020.01.11"]
[EventCountry "ENG"]
[SourceTitle "playchess.com"]
[Source "ChessBase"]
[SourceQuality "1"]
[TimeControl "40/6000:3000+30"]

1. d4 {[%emt 0:00:00]} Nf6 {[%emt 0:01:52]} 2. c4 {[%emt 0:00:00]} g6 {[%emt 0:00:00]} 3. Nc3 {[%emt 0:00:00]} Bg7 {[%emt 0:00:00]} 4. e4 {[%emt 0:00:00]} O-O {[%emt 0:00:00]} 5. Be2 {[%emt 0:00:00]} d6 {[%emt 0:00:00]} 6. Be3 {[%emt 0:00:00]} Na6 {[%emt 0:00:00]} 7. Nf3 {[%emt 0:00:00]} e5 {[%emt 0:00:00]} 8. d5 {[%emt 0:00:00]} Ng4 {[%emt 0:04:17]} 9. Bg5 {[%emt 0:00:00]} f6 {[%emt 0:00:00]} 10. Bh4 {[%emt 0:00:00]} Qe8 {[%emt 0:08:57]} 11. Nd2 {[%emt 0:00:00]} f5 {[%emt 0:06:10]} 12. Bxg4 {[%emt 0:00:00]} fxg4 {[%emt 0:00:00]} 13. Bg5 {[%emt 0:00:00]} Nc5 {[%emt 0:07:03]} 14. Qe2 {[%emt 0:02:50]} a5 {[%emt 0:03:55]} 15. O-O {[%emt 0:04:43]} Rf7 {[%emt 0:03:55]} 16. f3 {[%emt 0:06:03]} h6 {[%emt 0:09:59]} 17. Be3 {[%emt 0:00:00]} h5 {[%emt 0:00:00]} 18. Rf2 {[%emt 0:02:02]} Qe7 {[%emt 0:04:05]} 19. Raf1 {[%emt 0:13:37]} Bd7 {[%emt 0:04:29]} 20. fxg4 {[%emt 0:05:30]} Rxf2 {[%emt 0:00:00]} 21. Rxf2 {[%emt 0:00:00]} hxg4 {[%emt 0:03:06]} 22. g3 {[%emt 0:03:06]} a4 {[%emt 0:03:45]} 23. Ndb1 {[%emt 0:09:29]} Ra6 {[%emt 0:10:49]} 24. Na3 {[%emt 0:01:33]} Rb6 {[%emt 0:02:12]} 25. Nab5 {[%emt 0:08:23]} c6 {[%emt 0:09:44]} 26. Bxc5 {[%emt 0:01:28]} dxc5 {[%emt 0:00:00]} 27. Nxa4 {[%emt 0:03:52]} Ra6 {[%emt 0:00:00]} 28. d6 {[%emt 0:00:51]} Qg5 {[%emt 0:00:28]} 29. Nxc5 {[%emt 0:06:43]} cxb5 {[%emt 0:00:00]} 30. Nxa6 {[%emt 0:01:39]} bxa6 {[%emt 0:00:00]} 31. cxb5 {[%emt 0:04:38]} axb5 {[%emt 0:00:00]} 32. Qc2 {[%emt 0:03:36]} 1/2-1/2